bitfinex/quotes_ETHUSD_20250813
["timestamp","ask_amount","ask_price","bid_price","bid_amount"]
[1755071799276,51.1684582,4617.7,4617.6,5.189]
[1755071799781,51.1684583,4617.7,4617.6,5.189]
[1755071800080,51.1684583,4617.7,4617.6,8.474]
[1755071801248,14.81032424,4617.7,4617.6,8.474]
[1755071801451,14.608,4617.7,4617.6,8.9153]
[1755071801654,0.108,4617.7,4617.6,8.9153]
[1755071802367,0.002,4617.8,4617.6,8.9153]
[1755071802570,0.002,4617.8,4617.6,8.474]
[1755071802773,0.002,4617.8,4617.7,0.4413]
[1755071802955,0.002,4617.8,4617.7,0.81393]
[1755071803156,0.002,4617.8,4617.7,0.94393]
[1755071803367,0.002,4618.3,4617.7,0.94393]
[1755071803583,0.002,4618.3,4617.7,0.48063]
[1755071803879,0.002,4618.3,4618.2,0.108]
[1755071804079,0.002,4618.3,4618.2,3.393]
[1755071804248,0.002,4618.3,4618.2,4.1956]
[1755071805370,0.002,4618.3,4618.2,12.0826]
[1755071809784,0.002,4618.3,4618.2,12.0606]
[1755071810668,0.002,4618.3,4618.2,3.7313]
[1755071810867,0.002,4618.3,4618.2,3.392]
[1755071813421,0.002,4618.3,4618.2,3.8333]
[1755071813622,0.002,4618.3,4618.2,3.392]
[1755071813835,0.002,4620.6,4618.2,3.8873]
[1755071814121,0.002,4620.6,4618.4,0.55]
[1755071814425,0.002,4620.6,4620.5,0.108]
[1755071814633,0.002,4620.6,4620.5,3.463]
[1755071815121,0.002,4620.6,4620.5,3.9043]
[1755071815325,0.002,4620.6,4620.5,11.7893]
[1755071820248,0.002,4620.6,4620.5,5.296]
[1755071820432,0.4604,4620.6,4620.5,8.646]
[1755071820611,0.9196,4620.6,4620.5,8.646]
[1755071820808,0.9196,4620.6,4620.5,3.458]
[1755071821441,0.9196,4620.6,4620.5,3.46]
[1755071821644,0.9196,4620.6,4620.5,3.352]
[1755071823150,0.002,4620.6,4620.5,3.352]
[1755071823316,0.002,4620.6,4620.5,4.1483]
[1755071823946,0.002,4620.6,4620.5,4.2563]
[1755071824355,0.002,4620.6,4620.5,4.2763]
[1755071825453,0.002,4620.6,4620.5,12.1583]
[1755071825958,0.002,4620.6,4620.5,12.1383]
[1755071826148,0.002,4620.6,4620.5,12.1583]
[1755071827562,0.002,4620.6,4620.5,12.1383]
[1755071828229,0.002,4620.6,4620.5,4.2563]
[1755071828432,0.002,4620.6,4620.5,4.8263]
[1755071829823,0.002,4620.6,4620.5,4.2483]
[1755071831821,0.002,4620.6,4620.5,0.454]
[1755071832030,0.002,4620.6,4620.5,0.108]
[1755071832274,0.4604,4620.6,4620.5,3.45]
[1755071833534,0.002,4620.6,4620.5,3.45]
[1755071834340,0.9196,4620.6,4620.5,3.45]
[1755071834862,0.9196,4620.6,4620.5,0.108]
[1755071835032,0.9196,4620.6,4620.5,0.742]
[1755071835435,0.9196,4620.6,4620.5,8.623]
[1755071836058,0.9196,4620.6,4620.5,7.989]
[1755071836265,0.9196,4620.6,4620.5,11.328]
[1755071836646,0.9196,4620.6,4620.5,7.989]
[1755071836867,0.9196,4620.6,4620.5,8.523]
[1755071837033,0.9196,4620.6,4620.5,5.185]
[1755071837231,0.9196,4620.6,4620.5,8.523]
[1755071837632,0.9196,4620.6,4620.0,0.108]
[1755071837851,35.54173406,4620.4,4620.1,0.624]
[1755071838064,0.9176,4620.3,4620.2,0.624]
[1755071839130,0.9176,4620.3,4620.2,1.584]
[1755071839758,0.9176,4620.3,4619.8,0.108]
[1755071839977,0.9176,4620.2,4618.7,0.001]
[1755071840147,0.9176,4620.2,4619.4,0.108]
[1755071840350,35.43373406,4619.8,4619.4,0.108]
[1755071840681,0.9176,4619.7,4619.1,0.108]
[1755071840831,35.54173406,4619.8,4619.1,0.108]
[1755071841036,0.9176,4619.6,4619.1,0.108]
[1755071841340,0.9176,4619.5,4619.2,0.772]
[1755071841667,0.9176,4619.4,4619.3,1.861]
[1755071841864,0.9176,4619.4,4619.1,0.108]
[1755071842063,0.20128661,4619.6,4619.2,0.772]
[1755071842267,0.9176,4619.3,4619.2,0.772]
[1755071843287,0.108,4619.5,4619.2,0.772]
[1755071843588,35.43373406,4619.8,4619.2,0.88]
[1755071843790,0.4584,4619.4,4619.2,0.88]
[1755071843976,0.4592,4619.7,4619.2,0.88]
[1755071844161,35.43373406,4619.8,4619.2,0.88]
[1755071844361,0.4584,4619.7,4619.2,0.88]
[1755071844562,0.9176,4619.6,4619.2,0.88]
[1755071844886,35.43373406,4619.8,4619.2,0.88]
[1755071844887,0.4584,4619.5,4619.2,0.88]
[1755071845088,35.43373406,4619.8,4619.2,0.88]
[1755071845252,0.44187958,4619.8,4619.2,0.88]
[1755071845456,0.44187958,4619.8,4619.7,5.186]
[1755071845659,0.90107958,4619.8,4619.7,5.186]
[1755071846491,0.90107958,4619.8,4619.5,0.108]
[1755071846492,0.55,4619.7,4619.5,0.108]
[1755071846794,35.43373406,4618.8,4618.7,0.001]
[1755071846983,50.04173406,4618.8,4618.7,0.508]
[1755071847286,50.50093406,4618.8,4618.7,0.508]
[1755071847501,14.608,4618.8,4618.7,0.508]
[1755071847659,0.108,4618.8,4618.7,0.508]
[1755071848270,0.4584,4619.3,4618.7,0.508]
[1755071848271,0.4584,4619.7,4618.7,0.9583]
[1755071848472,0.4584,4619.7,4618.7,1.0663]
[1755071848683,0.4584,4619.7,4619.2,0.108]
[1755071848880,0.9176,4619.6,4619.2,0.108]
[1755071849085,0.108,4619.8,4619.2,0.108]
[1755071849288,0.9176,4619.5,4619.2,0.108]
[1755071849469,0.4992,4619.4,4619.2,0.828]
[1755071850198,0.6072,4619.8,4619.2,0.828]
[1755071850395,0.4992,4619.8,4619.2,0.828]
[1755071850897,0.4992,4620.5,4619.2,0.72]
[1755071851096,0.108,4620.4,4619.7,0.108]
[1755071851669,0.4992,4620.3,4619.7,0.108]
[1755071853800,0.108,4620.4,4619.7,0.108]
[1755071853992,0.108,4620.4,4619.8,0.456]
[1755071854489,0.0756,4620.6,4620.3,0.108]
[1755071854799,0.4992,4620.5,4620.3,0.108]
[1755071855172,0.9615,4620.4,4620.3,0.108]
[1755071855502,0.9615,4620.4,4620.3,10.156]
[1755071855876,0.9615,4620.4,4620.3,10.048]
[1755071856710,0.4992,4620.4,4620.3,10.048]
[1755071857073,0.9615,4620.4,4620.3,10.048]
[1755071858624,1.07601,4620.4,4620.3,5.186]
[1755071858829,1.07601,4620.4,4620.3,8.511]
[1755071859632,1.07601,4620.4,4619.7,0.108]
[1755071859797,35.43373406,4620.1,4619.2,0.72]
[1755071860221,0.9615,4620.0,4619.2,0.72]
[1755071860423,0.9615,4620.0,4619.4,0.108]
[1755071860624,0.4992,4620.0,4619.4,0.108]
[1755071860994,0.4992,4620.0,4619.5,1.856]
[1755071861198,0.108,4620.1,4619.5,1.856]
[1755071861399,0.108,4620.5,4619.8,0.108]
[1755071861598,0.9615,4620.4,4619.8,0.108]
[1755071861830,0.4623,4620.4,4619.8,0.108]
[1755071862130,0.4992,4620.3,4619.8,0.108]
[1755071862542,0.9615,4620.2,4619.5,1.856]
[1755071862698,0.4992,4620.1,4619.6,3.429]
[1755071863226,0.4992,4620.0,4619.6,3.429]
[1755071863428,0.4992,4619.9,4619.6,3.429]
[1755071864145,0.4992,4619.8,4619.6,3.429]
[1755071864435,0.4992,4619.7,4619.6,0.108]
[1755071864639,0.4992,4619.7,4619.6,3.429]
[1755071865409,0.4992,4619.7,4619.6,11.312]
[1755071866447,0.4992,4619.7,4619.6,7.991]
[1755071866613,0.4992,4619.7,4619.6,11.31]
[1755071866819,0.4692,4619.7,4619.6,11.31]
[1755071867140,35.43373406,4620.1,4619.6,11.31]
[1755071867446,35.43373406,4620.1,4619.6,8.613]
[1755071868040,35.43373406,4620.1,4619.7,0.456]
[1755071868841,35.43373406,4620.1,4619.6,8.613]
[1755071869023,35.43373406,4620.1,4619.7,0.456]
[1755071869267,0.108,4620.2,4619.7,0.456]
[1755071869442,0.108,4620.2,4619.6,8.613]
[1755071869602,0.1836,4620.6,4620.0,0.108]
[1755071869808,0.1836,4620.6,4620.0,0.564]
[1755071869998,0.0756,4620.6,4620.0,0.564]
[1755071870206,0.0756,4620.6,4620.0,0.456]
[1755071870404,0.0756,4620.6,4620.5,0.108]
[1755071871515,0.5748,4620.6,4620.5,0.108]
[1755071871708,1.0371,4620.6,4620.5,2.266]
[1755071871902,1.0371,4620.6,4620.5,2.158]
[1755071873726,0.5748,4620.6,4620.5,2.158]
[1755071875442,0.5748,4620.6,4620.5,10.041]
[1755071876648,1.0371,4620.6,4620.5,10.041]
[1755071876960,0.5748,4620.6,4620.5,10.041]
[1755071877937,1.0371,4620.6,4620.5,3.312]
[1755071879853,0.5559,4620.6,4620.5,3.312]
[1755071880062,0.0756,4620.6,4620.5,3.312]
[1755071881666,0.5559,4620.6,4620.5,3.312]
[1755071882692,16.24780241,4620.6,4620.5,3.312]
[1755071882841,16.24780241,4620.6,4619.6,0.001]
[1755071882842,16.17220241,4620.3,4619.6,0.001]
[1755071883160,0.108,4620.3,4619.7,3.312]
[1755071883359,0.4803,4620.2,4619.7,3.312]
[1755071883561,0.9258,4620.1,4619.7,3.312]
[1755071883763,0.4803,4620.0,4619.7,3.312]
[1755071883965,0.108,4620.3,4619.7,3.312]
[1755071884280,16.17220241,4619.8,4619.7,3.7507]
[1755071885372,16.17220241,4619.8,4619.7,11.6337]
[1755071887547,16.17220241,4619.8,4619.7,11.195]
[1755071887775,16.17220241,4619.8,4619.7,5.186]
[1755071888125,16.17220241,4619.8,4619.7,8.496]
[1755071888660,16.17220241,4619.8,4619.6,0.001]
[1755071888865,16.17220241,4619.8,4619.7,3.309]
[1755071891343,16.65250241,4619.8,4619.7,3.309]
[1755071892361,16.65250241,4619.8,4619.7,3.307]
[1755071893350,17.09800241,4619.8,4619.7,3.306]
[1755071893550,17.20600241,4619.8,4619.2,0.72]
[1755071893794,16.17220241,4619.3,4619.2,0.72]
[1755071894364,16.17220241,4619.8,4619.2,1.2667]
[1755071894610,16.17220241,4619.8,4619.3,0.4387]
[1755071894809,16.17220241,4619.8,4619.4,0.12677]
[1755071894960,16.17220241,4619.8,4619.7,0.108]
[1755071895163,16.17220241,4619.8,4619.7,0.5467]
[1755071895385,16.17220241,4620.3,4619.7,8.4297]
[1755071895695,16.17220241,4620.3,4619.8,0.4387]
[1755071895991,16.17220241,4620.3,4620.2,0.108]
[1755071896162,16.17220241,4620.3,4620.2,3.8517]
[1755071896492,0.0756,4620.6,4620.2,3.8517]
[1755071896688,0.0756,4620.6,4620.3,0.4387]
[1755071897070,0.0756,4620.6,4620.2,3.413]
[1755071897270,0.0756,4620.6,4620.3,0.4387]
[1755071897494,0.0756,4620.6,4620.3,0.82387]
[1755071897791,0.0756,4620.6,4620.5,0.108]
[1755071898157,0.0756,4620.6,4620.5,0.5467]
[1755071900006,0.0756,4620.6,4620.5,0.108]
[1755071900991,0.0756,4620.6,4620.5,0.5467]
[1755071901209,0.0756,4620.6,4620.5,0.970387]
[1755071903535,0.0756,4620.6,4620.5,0.531687]
[1755071904736,0.5559,4620.6,4620.5,0.108]
[1755071904935,0.5559,4620.6,4620.5,2.046]
[1755071905231,1.0014,4620.6,4620.5,2.046]
[1755071905410,1.0014,4620.6,4620.5,9.928]
[1755071905607,1.0014,4620.6,4620.5,11.293]
[1755071906212,0.0756,4620.6,4620.5,11.293]
[1755071907128,0.5559,4620.6,4620.5,11.293]
[1755071908038,1.0014,4620.6,4620.5,11.293]
[1755071908507,0.0756,4620.6,4620.5,11.293]
[1755071908828,0.5559,4620.6,4620.5,11.293]
[1755071909033,1.0014,4620.6,4620.5,11.293]
[1755071909222,0.5559,4620.6,4620.5,11.293]
[1755071909724,0.5427,4620.6,4620.5,11.293]
[1755071910402,0.0756,4620.6,4620.5,11.293]
[1755071910600,0.5427,4620.6,4620.5,11.293]
[1755071911245,0.5427,4620.6,4620.5,11.583]
[1755071911618,0.5427,4620.6,4620.5,8.887]
[1755071915324,0.5427,4620.6,4620.5,11.583]
[1755071916456,0.4691,4620.6,4620.5,11.5094]
[1755071917752,0.9287,4620.6,4620.5,8.776]
[1755071917952,0.9287,4620.6,4620.5,5.476]
[1755071918127,0.9287,4620.6,4620.5,3.59]
[1755071918760,17.10239266,4620.6,4620.5,3.59]
[1755071919648,16.64279266,4620.6,4620.5,3.59]
[1755071921365,16.17569266,4620.6,4620.5,3.59]
[1755071921743,16.64279266,4620.6,4620.5,3.59]
[1755071921965,17.10239266,4620.6,4620.5,0.29]
[1755071922168,17.10239266,4620.6,4619.8,0.001]
[1755071922374,16.17369266,4620.0,4619.8,0.001]
[1755071922560,16.17369266,4620.0,4619.6,0.001]
[1755071922740,0.108,4619.8,4619.6,0.001]
[1755071923247,0.108,4619.8,4619.7,0.783]
[1755071923447,15.0676,4619.8,4619.7,0.783]
[1755071923950,15.5347,4619.8,4619.7,0.783]
[1755071924151,15.5347,4619.8,4619.6,0.001]
[1755071924347,14.608,4619.8,4619.7,1.638]
[1755071925074,15.5347,4619.8,4619.6,0.001]
[1755071925372,14.608,4619.8,4619.7,8.661]
[1755071926092,15.5347,4619.8,4619.7,11.179]
[1755071926393,15.5347,4619.8,4619.7,8.483]
[1755071926590,1.0347,4619.8,4619.7,8.483]
[1755071927165,15.5347,4619.8,4619.7,8.483]
[1755071928671,31.24879266,4619.8,4619.7,8.483]
[1755071929083,31.70839266,4619.8,4619.7,8.483]
[1755071930909,30.78169266,4619.8,4619.7,8.483]
[1755071931473,30.78169266,4619.8,4619.7,3.297]
[1755071931665,31.25280891,4619.8,4619.7,3.297]
[1755071932299,31.71240891,4619.8,4619.7,3.297]
[1755071935416,31.71240891,4619.8,4619.7,11.18]
[1755071936807,31.25280891,4619.8,4619.7,11.18]
[1755071937506,31.25280891,4619.8,4619.7,11.177]
[1755071938106,14.608,4619.8,4619.7,11.177]
[1755071938905,15.0751,4619.8,4619.7,11.177]
[1755071939109,0.108,4620.0,4619.7,8.9527]
[1755071939326,0.108,4620.4,4619.8,0.4727]
[1755071939694,14.5,4620.3,4619.8,0.4727]
[1755071939896,14.5,4620.3,4619.9,0.4685]
[1755071940098,14.5,4620.3,4619.7,3.402]
[1755071940299,14.5,4620.3,4619.7,0.108]
[1755071940300,30.67770891,4620.3,4619.7,0.108]
[1755071940529,0.108,4620.1,4619.6,0.001]
[1755071940729,0.108,4620.1,4619.8,3.294]
[1755071940933,0.966,4620.0,4619.6,0.001]
[1755071941138,16.28570891,4619.7,4619.6,0.001]
[1755071941309,16.28570891,4619.7,4619.6,3.295]
[1755071941740,16.77810891,4619.7,4619.6,3.295]
[1755071942434,16.77810891,4619.7,4619.6,0.001]
[1755071942637,17.25170891,4619.7,4619.6,3.295]
[1755071942937,17.45374406,4619.7,4619.6,3.295]
[1755071944565,17.4537492,4619.7,4619.6,3.295]
[1755071944739,16.9801492,4619.7,4619.6,3.295]
[1755071945037,31.4801492,4619.7,4619.6,3.295]
[1755071945443,31.4801492,4619.7,4619.6,11.179]
[1755071946006,14.608,4619.7,4619.6,11.6475]
[1755071947121,0.108,4619.7,4619.6,11.179]
[1755071947436,0.108,4619.9,4619.6,8.9505]
[1755071947611,0.108,4619.9,4619.6,8.482]
[1755071947935,0.108,4619.9,4619.7,0.4685]
[1755071948377,0.108,4619.9,4619.8,0.4685]
[1755071948526,0.108,4619.9,4619.6,8.482]
[1755071948733,0.4924,4619.8,4619.6,8.482]
[1755071949259,0.108,4619.9,4619.6,8.482]
[1755071949260,0.4924,4619.7,4619.6,8.482]
[1755071949657,0.4924,4619.7,4619.6,0.001]
[1755071949863,0.966,4619.7,4619.6,0.784]
[1755071950267,1.16822871,4619.7,4619.6,0.784]
[1755071951578,0.20222871,4619.7,4619.6,0.784]
[1755071951773,0.20222871,4619.8,4619.6,1.2525]
[1755071952076,0.108,4619.9,4619.7,0.4685]
[1755071952365,0.108,4620.0,4619.6,0.784]
[1755071952569,0.6004,4620.0,4619.6,0.784]
[1755071952936,0.108,4620.0,4619.7,0.4685]
[1755071953459,0.108,4620.0,4619.8,0.4685]
[1755071953856,0.108,4620.0,4619.9,0.4685]
[1755071954037,0.11,4620.3,4619.9,0.4685]
[1755071954950,0.002,4620.3,4620.0,0.4685]
[1755071955153,0.002,4620.3,4620.0,0.535]
[1755071955363,0.002,4620.3,4620.2,5.295]
[1755071955878,0.002,4620.3,4620.2,5.7635]
[1755071958878,0.08847,4621.1,4620.2,5.6555]
[1755071959060,0.11,4621.1,4620.3,0.83525]
[1755071959393,0.11,4621.1,4620.4,3.7625]
[1755071959611,14.5,4621.0,4620.4,3.294]
[1755071959885,15.466,4621.0,4620.4,3.294]
[1755071960189,16.17770891,4620.6,4620.4,3.294]
[1755071960480,1.074,4620.5,4620.4,3.294]
[1755071960680,0.6004,4620.5,4620.2,5.187]
[1755071960872,0.6004,4620.5,4619.7,0.5765]
[1755071961072,0.6004,4620.5,4620.3,3.294]
[1755071962257,0.4924,4620.4,4620.3,3.294]
[1755071962888,0.966,4620.4,4620.3,3.294]
[1755071964400,17.14370891,4620.4,4620.3,3.294]
[1755071965328,17.14370891,4620.4,4620.3,11.177]
[1755071966631,0.4924,4620.4,4620.3,11.177]
[1755071967000,0.4724,4620.4,4620.3,11.177]
[1755071967914,14.9724,4620.4,4620.3,11.177]
[1755071969326,14.5,4620.4,4620.3,11.177]
[1755071969515,14.5,4620.4,4620.3,8.48]
[1755071971011,0.108,4620.5,4620.3,8.9207]
[1755071971404,0.108,4620.5,4620.3,8.48]
[1755071971739,0.457,4620.4,4620.3,8.48]
[1755071972043,0.457,4620.4,4619.8,0.4417]
[1755071972335,0.457,4620.4,4619.9,3.293]
[1755071972537,0.457,4620.3,4619.9,3.293]
[1755071972741,0.457,4620.3,4619.9,3.7337]
[1755071973740,0.457,4620.2,4619.9,3.293]
[1755071973930,0.4628,4620.3,4620.0,3.293]
[1755071974131,0.457,4620.2,4620.0,3.293]
[1755071975013,0.5497,4620.5,4620.0,3.293]
[1755071975213,0.457,4620.1,4620.0,3.293]
[1755071975410,0.457,4620.1,4620.0,11.176]
[1755071976047,16.63470891,4620.1,4619.8,0.001]
[1755071976341,1.21492347,4620.0,4619.7,0.108]
[1755071976646,0.55,4619.8,4619.6,0.001]
[1755071976813,0.108,4619.7,4619.6,0.001]
[1755071977008,0.55,4619.6,4618.7,0.001]
[1755071977247,16.28570891,4619.4,4618.7,0.001]
[1755071977441,31.5378063,4619.4,4619.3,3.294]
[1755071977653,32.4576063,4619.4,4619.3,3.294]
[1755071981239,32.25550891,4619.4,4619.3,3.294]
[1755071981429,31.79270891,4619.4,4619.3,3.294]
[1755071981639,33.55114034,4619.4,4619.3,3.294]
[1755071985467,15.065,4619.4,4619.3,11.178]
[1755071985637,14.608,4619.4,4619.3,11.6187]
[1755071985835,0.108,4619.5,4619.3,11.6187]
[1755071986043,7.17,4620.3,4619.4,0.4407]
[1755071986249,0.108,4619.8,4619.4,1.68927]
[1755071986544,0.108,4619.8,4619.5,0.4407]
[1755071987238,0.108,4619.8,4619.6,0.4407]
[1755071987477,0.108,4619.8,4619.7,3.294]
[1755071988042,0.565,4619.8,4619.7,3.294]
[1755071988240,1.0278,4619.8,4619.7,3.294]
[1755071988452,1.67656,4619.8,4619.7,3.294]
[1755071989340,1.21376,4619.8,4619.7,3.294]
[1755071989536,0.75676,4619.8,4619.7,3.294]
[1755071990157,1.21376,4619.8,4619.7,3.294]
[1755071990739,1.62656,4619.8,4619.7,3.294]
[1755071990941,0.9778,4619.8,4619.7,3.294]
[1755071991566,1.62656,4619.8,4619.7,3.294]
[1755071991767,0.55,4619.7,4619.3,5.188]
[1755071991968,16.28570891,4619.4,4619.3,5.188]
[1755071992273,16.74270891,4619.4,4619.3,8.482]
[1755071992957,17.20550891,4619.4,4619.3,8.482]
[1755071993496,0.108,4619.4,4619.3,8.482]
[1755071994565,0.108,4619.4,4619.3,8.9227]
[1755071994739,0.108,4619.4,4619.3,3.7357]
[1755071995369,0.108,4619.4,4619.3,11.6197]
[1755071998146,0.108,4619.4,4619.3,11.6497]
[1755071998754,0.108,4619.4,4619.3,11.209]
[1755071998958,0.108,4619.4,4619.3,8.511]
[1755071999888,0.108,4619.4,4619.3,8.9775]
[1755072000297,0.108,4619.4,4619.3,5.218]
[1755072000585,0.5713,4619.4,4619.3,8.511]
[1755072000788,1.0227,4619.4,4619.3,3.324]
[1755072001144,0.108,4619.4,4619.3,3.324]
[1755072001348,16.74900891,4619.4,4619.3,3.324]
[1755072001548,16.74900891,4619.4,4619.3,0.031]
[1755072001749,0.55,4619.3,4619.2,0.001]
[1755072001996,8.0847,4619.3,4619.2,0.001]
[1755072002145,8.28671483,4619.3,4619.2,0.001]
[1755072002348,7.6333,4619.3,4619.2,0.001]
[1755072002548,8.0847,4619.3,4619.2,0.001]
[1755072002851,8.28672764,4619.3,4619.2,0.001]
[1755072003050,8.28672764,4619.3,4619.2,3.294]
[1755072003281,1.848,4619.2,4615.1,0.0865]
[1755072003579,16.17770891,4618.3,4616.1,0.4665]
[1755072003778,16.17770891,4617.4,4616.1,0.4665]
[1755072003944,16.37973655,4617.4,4617.3,0.599]
[1755072004144,17.29443655,4617.4,4617.3,0.599]
[1755072004581,17.29443655,4617.4,4617.3,1.145]
[1755072004750,1.11672764,4617.4,4617.3,1.145]
[1755072004951,1.11672764,4617.4,4615.5,0.001]
[1755072005150,35.43647562,4616.5,4615.5,0.001]
[1755072005453,35.43647562,4616.5,4616.4,7.89]
[1755072005652,35.89977562,4616.5,4616.4,7.89]
[1755072005953,0.4633,4617.5,4616.4,7.89]
[1755072006152,0.4633,4617.5,4616.8,0.001]
[1755072006351,0.4633,4617.5,4617.3,0.001]
[1755072006582,0.9147,4617.4,4617.3,0.001]
[1755072006768,35.43647562,4616.9,4616.8,0.001]
[1755072006961,35.43647562,4616.9,4616.8,8.483]
[1755072007157,36.35117562,4616.9,4616.8,8.483]
[1755072007358,36.51444901,4616.9,4616.8,8.483]
[1755072007561,36.06304901,4616.9,4616.8,8.483]
[1755072007963,36.51444901,4616.9,4616.8,8.483]
[1755072008538,0.62657339,4616.9,4616.8,8.483]
[1755072008654,0.16327339,4616.9,4616.8,8.9495]
[1755072008854,0.4514,4618.1,4616.8,8.9495]
[1755072008855,0.4633,4618.0,4616.8,8.9495]
[1755072009076,0.649066,4617.5,4616.8,8.483]
[1755072009279,0.649066,4617.5,4616.9,0.4665]
[1755072009496,0.16488484,4618.1,4617.0,0.89495]
[1755072009780,0.648968,4618.3,4617.1,0.4665]
[1755072010149,0.648968,4618.3,4617.2,0.0885]
[1755072010356,0.648968,4618.3,4617.3,0.4665]
[1755072010556,0.4633,4618.9,4617.3,0.4665]
[1755072010775,0.4633,4618.9,4617.3,0.611495]
[1755072010973,0.648937,4618.6,4617.4,0.4665]
[1755072011183,0.4633,4618.5,4617.5,3.296]
[1755072011376,0.4633,4618.5,4617.6,3.296]
[1755072012075,0.4633,4618.5,4617.7,3.296]
[1755072012271,0.6196637,4618.5,4617.7,3.296]
[1755072012599,0.6196637,4618.5,4617.8,3.296]
[1755072012792,0.6196637,4618.5,4617.9,3.296]
[1755072012957,0.6196637,4618.5,4617.4,0.4665]
[1755072013158,0.6196637,4618.5,4617.5,3.296]
[1755072013404,0.108,4617.8,4617.5,3.296]
[1755072013603,0.108,4617.8,4617.5,0.4665]
[1755072013807,0.108,4617.8,4617.6,3.296]
[1755072014009,0.108,4617.8,4617.1,0.108]
[1755072014167,0.108,4617.8,4617.7,3.296]
[1755072015305,0.108,4617.8,4617.7,5.994]
[1755072015513,0.108,4617.8,4617.7,11.183]
[1755072016831,0.108,4617.8,4617.7,7.887]
[1755072016998,1.0227,4617.8,4617.7,11.183]
[1755072017919,1.0227,4617.8,4617.7,11.182]
[1755072019224,1.0227,4617.8,4617.7,11.183]
[1755072019430,1.14508723,4617.8,4617.7,11.183]
[1755072021134,1.79420323,4617.8,4617.7,11.183]
[1755072021533,0.87950323,4617.8,4617.7,11.183]
[1755072021846,0.108,4617.8,4617.7,11.6495]
[1755072022501,0.108,4617.8,4617.7,7.887]
[1755072022701,0.108,4617.8,4617.7,11.183]
[1755072023799,0.108,4617.8,4617.7,7.887]
[1755072023999,0.108,4617.8,4617.7,11.182]
[1755072024445,0.108,4617.8,4617.7,11.6485]
[1755072024795,0.108,4617.8,4617.7,11.182]
[1755072026337,0.108,4617.8,4617.7,11.6485]
[1755072028450,0.108,4617.8,4617.7,11.182]
[1755072028641,1.0227,4617.8,4617.7,7.887]
[1755072028808,1.0227,4617.8,4617.7,11.182]
[1755072029006,0.108,4617.8,4617.7,11.182]
[1755072029738,0.5966,4617.8,4617.7,7.887]
[1755072029905,1.0495,4617.8,4617.7,11.183]
[1755072030106,1.0495,4617.8,4617.7,7.887]
[1755072030318,1.0495,4617.8,4617.7,11.185]
[1755072031040,1.0495,4617.8,4617.7,7.887]
[1755072031218,1.0495,4617.8,4617.7,11.184]
[1755072031417,1.0495,4617.8,4617.7,7.887]
[1755072031618,1.0495,4617.8,4617.7,11.184]
[1755072031838,1.0495,4617.8,4617.7,7.887]
[1755072032202,8.2195,4617.8,4617.7,7.887]
[1755072032407,9.72830091,4617.8,4617.7,7.887]
[1755072032607,24.22830091,4617.8,4617.7,11.184]
[1755072032808,24.80995797,4617.8,4617.7,11.184]
[1755072033045,24.80995797,4617.8,4617.7,11.185]
[1755072033208,24.22830091,4617.8,4617.7,7.887]
[1755072033408,24.22830091,4617.8,4617.7,11.184]
[1755072033832,24.22830091,4617.8,4617.7,7.887]
[1755072034047,24.22830091,4617.8,4617.7,11.184]
[1755072035440,23.77540091,4617.8,4617.7,7.887]
[1755072035643,24.22865635,4617.8,4617.7,11.185]
[1755072036011,23.28715635,4617.8,4617.7,11.185]
[1755072036213,22.82189688,4617.8,4617.7,11.185]
[1755072036415,21.97976989,4617.8,4617.7,11.6461]
[1755072037152,21.778,4617.8,4617.7,11.6461]
[1755072037512,14.608,4617.8,4617.7,11.6461]
[1755072037930,0.108,4617.8,4617.7,12.1961]
[1755072038144,0.108,4617.8,4617.7,11.185]
[1755072038343,0.5966,4617.8,4617.7,11.185]
[1755072038546,15.0966,4617.8,4617.7,11.185]
[1755072038713,15.0966,4617.8,4617.7,11.186]
[1755072038910,14.608,4617.8,4617.7,11.186]
[1755072039323,15.0966,4617.8,4617.7,7.887]
[1755072039533,15.0966,4617.8,4617.7,11.186]
[1755072039734,15.0966,4617.8,4617.7,7.887]
[1755072039912,15.75151287,4617.8,4617.7,11.185]
[1755072040115,16.21704415,4617.8,4617.7,11.187]
[1755072042412,17.51504415,4617.8,4617.7,11.187]
[1755072042612,16.21704415,4617.8,4617.7,11.187]
[1755072043035,23.38704415,4617.8,4617.7,11.187]
[1755072043222,22.93414415,4617.8,4617.7,11.187]
[1755072043530,23.38704415,4617.8,4617.7,11.187]
[1755072043945,23.38704415,4617.8,4617.7,7.887]
[1755072044248,23.38704415,4617.8,4617.7,11.186]
[1755072045416,23.27904415,4617.8,4617.7,5.19]